[Event "Titled Tuesday Blitz November 15 Early 2022"]
[White "Rodriguez Santiago, Jaime"]
[Black "Cramling Bellon, Anna"]
[WhiteFideId "3100898"]
[BlackFideId "32009232"]
[WhiteElo "2025"]
[BlackElo "1972"]
[Result "1-0"]
[Round "09"]
[TimeControl "180+1"]
[Date "2022.11.16"]
[WhiteClock "0:00:05"]
[BlackClock "0:00:01"]

1. c4 {[%clk 0:02:55]}  c5 {[%clk 0:02:57]} 2. Nc3 {[%clk 0:02:55]}  Nc6 {[%clk 0:02:50]} 3. g3 {[%clk 0:02:52]}  g6 {[%clk 0:02:49]} 4. Bg2 {[%clk 0:02:51]}  Bg7 {[%clk 0:02:49]} 5. e4 {[%clk 0:02:46]}  d6 {[%clk 0:02:46]} 6. Nge2 {[%clk 0:02:46]}  e5 {[%clk 0:02:44]} 7. d3 {[%clk 0:02:42]}  Nge7 {[%clk 0:02:43]} 8. a3 {[%clk 0:02:40]}  a5 {[%clk 0:02:41]} 9. O-O {[%clk 0:02:39]}  O-O {[%clk 0:02:40]} 10. Rb1 {[%clk 0:02:39]}  Be6 {[%clk 0:02:38]} 11. Nd5 {[%clk 0:02:30]}  Nd4 {[%clk 0:02:30]} 12. Nxd4 {[%clk 0:02:05]}  cxd4 {[%clk 0:02:28]} 13. Bg5 {[%clk 0:02:04]}  f6 {[%clk 0:02:27]} 14. Bd2 {[%clk 0:02:03]}  Bxd5 {[%clk 0:01:51]} 15. exd5 {[%clk 0:02:02]}  Qd7 {[%clk 0:01:32]} 16. f4 {[%clk 0:01:48]}  b5 {[%clk 0:01:21]} 17. b4 {[%clk 0:01:42]}  axb4 {[%clk 0:01:12]} 18. axb4 {[%clk 0:01:38]}  bxc4 {[%clk 0:01:07]} 19. dxc4 {[%clk 0:01:36]}  f5 {[%clk 0:00:53]} 20. fxe5 {[%clk 0:01:25]}  dxe5 {[%clk 0:00:53]} 21. Bg5 {[%clk 0:01:16]}  e4 {[%clk 0:00:47]} 22. Bxe7 {[%clk 0:01:05]}  Qxe7 {[%clk 0:00:46]} 23. c5 {[%clk 0:01:06]}  d3 {[%clk 0:00:33]} 24. Re1 {[%clk 0:00:50]}  Qd7 {[%clk 0:00:15]} 25. Qb3 {[%clk 0:00:41]}  Rfd8 {[%clk 0:00:13]} 26. d6+ {[%clk 0:00:39]}  Kf8 {[%clk 0:00:10]} 27. Qd5 {[%clk 0:00:37]}  Qf7 {[%clk 0:00:08]} 28. Qxf7+ {[%clk 0:00:22]}  Kxf7 {[%clk 0:00:09]} 29. Bf1 {[%clk 0:00:14]}  Bd4+ {[%clk 0:00:08]} 30. Kg2 {[%clk 0:00:14]}  Ra2+ {[%clk 0:00:07]} 31. Kh1 {[%clk 0:00:11]}  Kf6 {[%clk 0:00:05]} 32. Bg2 {[%clk 0:00:07]}  e3 {[%clk 0:00:04]} 33. b5 {[%clk 0:00:05]}  d2 {[%clk 0:00:04]} 34. Red1 {[%clk 0:00:06]}  e2 {[%clk 0:00:04]} 35. Rxd2 {[%clk 0:00:06]}  Rxd2 {[%clk 0:00:03]} 36. Bf3 {[%clk 0:00:05]}  Rc2 {[%clk 0:00:01]} 37. Bxe2 {[%clk 0:00:05]}  Rxe2 {[%clk 0:00:01]} 38. c6 {[%clk 0:00:05]} 1-0


[Site "https://www.chess.com"]

[Event "Titled Tuesday Blitz November 15 Early 2022"]
[White "Rohith Krishna S"]
[Black "Grandelius, Nils"]
[WhiteFideId "46617051"]
[BlackFideId "1710400"]
[WhiteElo "2270"]
[BlackElo "2617"]
[Result "1/2-1/2"]
[Round "09"]
[TimeControl "180+1"]
[Date "2022.11.15"]
[WhiteClock "0:00:33"]
[BlackClock "0:00:14"]

1. d4 {[%clk 0:03:00]}  d5 {[%clk 0:03:00]} 2. c4 {[%clk 0:02:59]}  e6 {[%clk 0:03:00]} 3. Nc3 {[%clk 0:02:58]}  a6 {[%clk 0:03:01]} 4. e4 {[%clk 0:02:52]}  dxe4 {[%clk 0:03:00]} 5. Nxe4 {[%clk 0:02:52]}  Nf6 {[%clk 0:02:59]} 6. Nc3 {[%clk 0:02:51]}  c5 {[%clk 0:02:49]} 7. Nf3 {[%clk 0:02:43]}  cxd4 {[%clk 0:02:28]} 8. Nxd4 {[%clk 0:02:42]}  Bc5 {[%clk 0:01:57]} 9. Nb3 {[%clk 0:02:34]}  Qxd1+ {[%clk 0:01:55]} 10. Nxd1 {[%clk 0:02:35]}  Bd6 {[%clk 0:01:52]} 11. Be2 {[%clk 0:02:32]}  Nc6 {[%clk 0:01:49]} 12. O-O {[%clk 0:02:32]}  Ke7 {[%clk 0:01:50]} 13. Be3 {[%clk 0:02:31]}  Bd7 {[%clk 0:01:36]} 14. Nc5 {[%clk 0:02:26]}  Rab8 {[%clk 0:01:32]} 15. Nxd7 {[%clk 0:02:24]}  Nxd7 {[%clk 0:01:31]} 16. Nc3 {[%clk 0:02:23]}  Bc5 {[%clk 0:01:23]} 17. Bf4 {[%clk 0:02:03]}  Nde5 {[%clk 0:01:04]} 18. a3 {[%clk 0:01:55]}  Rbd8 {[%clk 0:01:01]} 19. b4 {[%clk 0:01:52]}  Bd4 {[%clk 0:00:59]} 20. Rac1 {[%clk 0:01:53]}  Ng6 {[%clk 0:00:56]} 21. Bg3 {[%clk 0:01:51]}  h5 {[%clk 0:00:56]} 22. h3 {[%clk 0:01:48]}  h4 {[%clk 0:00:56]} 23. Bh2 {[%clk 0:01:49]}  Be5 {[%clk 0:00:52]} 24. Bf3 {[%clk 0:01:48]}  Bxh2+ {[%clk 0:00:49]} 25. Kxh2 {[%clk 0:01:49]}  Nge5 {[%clk 0:00:49]} 26. Bxc6 {[%clk 0:01:49]}  Nxc6 {[%clk 0:00:45]} 27. Ne4 {[%clk 0:01:50]}  a5 {[%clk 0:00:34]} 28. b5 {[%clk 0:01:34]}  Ne5 {[%clk 0:00:33]} 29. c5 {[%clk 0:01:31]}  Rd5 {[%clk 0:00:22]} 30. a4 {[%clk 0:01:26]}  Nd3 {[%clk 0:00:19]} 31. Rc3 {[%clk 0:01:24]}  f5 {[%clk 0:00:19]} 32. c6 {[%clk 0:01:14]}  fxe4 {[%clk 0:00:17]} 33. cxb7 {[%clk 0:01:14]}  Rb8 {[%clk 0:00:18]} 34. f3 {[%clk 0:01:10]}  Rxb7 {[%clk 0:00:16]} 35. fxe4 {[%clk 0:01:10]}  Rd4 {[%clk 0:00:17]} 36. Rc8 {[%clk 0:01:03]}  Ne5 {[%clk 0:00:16]} 37. Rc5 {[%clk 0:01:03]}  Nd7 {[%clk 0:00:16]} 38. Rg5 {[%clk 0:01:03]}  Rxa4 {[%clk 0:00:15]} 39. Rxg7+ {[%clk 0:01:03]}  Kd8 {[%clk 0:00:13]} 40. Rf4 {[%clk 0:00:58]}  Rd4 {[%clk 0:00:12]} 41. Rxh4 {[%clk 0:00:58]}  a4 {[%clk 0:00:12]} 42. Rh8+ {[%clk 0:00:59]}  Kc7 {[%clk 0:00:12]} 43. Ra8 {[%clk 0:00:59]}  Kb6 {[%clk 0:00:10]} 44. h4 {[%clk 0:00:58]}  Nf6 {[%clk 0:00:10]} 45. Rg6 {[%clk 0:00:57]}  Rf7 {[%clk 0:00:06]} 46. e5 {[%clk 0:00:56]}  Ng4+ {[%clk 0:00:07]} 47. Kg3 {[%clk 0:00:57]}  Ne3 {[%clk 0:00:03]} 48. Rxe6+ {[%clk 0:00:58]}  Kxb5 {[%clk 0:00:04]} 49. Rf6 {[%clk 0:00:52]}  Rg7+ {[%clk 0:00:02]} 50. Kf3 {[%clk 0:00:53]}  Nd5 {[%clk 0:00:03]} 51. Rd6 {[%clk 0:00:52]}  Rf4+ {[%clk 0:00:03]} 52. Ke2 {[%clk 0:00:53]}  Rxg2+ {[%clk 0:00:04]} 53. Kd3 {[%clk 0:00:53]}  Rg3+ {[%clk 0:00:05]} 54. Ke2 {[%clk 0:00:53]}  Rg2+ {[%clk 0:00:05]} 55. Kd3 {[%clk 0:00:54]}  Nb4+ {[%clk 0:00:05]} 56. Ke3 {[%clk 0:00:54]}  Rxh4 {[%clk 0:00:05]} 57. Rb8+ {[%clk 0:00:55]}  Kc4 {[%clk 0:00:06]} 58. e6 {[%clk 0:00:53]}  Rg1 {[%clk 0:00:05]} 59. Kf2 {[%clk 0:00:51]}  Rg5 {[%clk 0:00:05]} 60. e7 {[%clk 0:00:51]}  Re5 {[%clk 0:00:06]} 61. e8=Q {[%clk 0:00:51]}  Rxe8 {[%clk 0:00:06]} 62. Rxe8 {[%clk 0:00:51]}  Kb3 {[%clk 0:00:07]} 63. Ra8 {[%clk 0:00:51]}  a3 {[%clk 0:00:06]} 64. Rg6 {[%clk 0:00:49]}  Rh2+ {[%clk 0:00:04]} 65. Kg1 {[%clk 0:00:50]}  Rd2 {[%clk 0:00:04]} 66. Rg3+ {[%clk 0:00:50]}  Nd3 {[%clk 0:00:05]} 67. Rb8+ {[%clk 0:00:50]}  Kc2 {[%clk 0:00:05]} 68. Rc8+ {[%clk 0:00:50]}  Kb1 {[%clk 0:00:04]} 69. Rb8+ {[%clk 0:00:50]}  Kc1 {[%clk 0:00:05]} 70. Rc8+ {[%clk 0:00:49]}  Kb1 {[%clk 0:00:03]} 71. Rb8+ {[%clk 0:00:49]}  Nb2 {[%clk 0:00:03]} 72. Rxa3 {[%clk 0:00:49]}  Kc1 {[%clk 0:00:03]} 73. Rc3+ {[%clk 0:00:49]}  Rc2 {[%clk 0:00:04]} 74. Rcb3 {[%clk 0:00:49]}  Kb1 {[%clk 0:00:04]} 75. Kf1 {[%clk 0:00:48]}  Ka2 {[%clk 0:00:03]} 76. R3b7 {[%clk 0:00:48]}  Kb1 {[%clk 0:00:04]} 77. Ke1 {[%clk 0:00:48]}  Kc1 {[%clk 0:00:05]} 78. Rd8 {[%clk 0:00:47]}  Rc3 {[%clk 0:00:04]} 79. Ke2 {[%clk 0:00:45]}  Nc4 {[%clk 0:00:04]} 80. Rc7 {[%clk 0:00:44]}  Rc2+ {[%clk 0:00:05]} 81. Ke1 {[%clk 0:00:42]}  Ne3 {[%clk 0:00:05]} 82. Re7 {[%clk 0:00:41]}  Nc4 {[%clk 0:00:06]} 83. Rb7 {[%clk 0:00:39]}  Nb2 {[%clk 0:00:06]} 84. Rdb8 {[%clk 0:00:37]}  Rh2 {[%clk 0:00:05]} 85. Kf1 {[%clk 0:00:36]}  Rc2 {[%clk 0:00:06]} 86. Kg1 {[%clk 0:00:37]}  Kb1 {[%clk 0:00:07]} 87. Re8 {[%clk 0:00:36]}  Rd2 {[%clk 0:00:05]} 88. Re1+ {[%clk 0:00:35]}  Kc2 {[%clk 0:00:05]} 89. Rc7+ {[%clk 0:00:33]}  Kb3 {[%clk 0:00:06]} 90. Re3+ {[%clk 0:00:32]}  Rd3 {[%clk 0:00:06]} 91. Rb7+ {[%clk 0:00:31]}  Kc3 {[%clk 0:00:03]} 92. Re2 {[%clk 0:00:28]}  Nc4 {[%clk 0:00:04]} 93. Kf2 {[%clk 0:00:28]}  Rd2 {[%clk 0:00:04]} 94. Rc7 {[%clk 0:00:28]}  Rxe2+ {[%clk 0:00:04]} 95. Kxe2 {[%clk 0:00:29]}  Kd4 {[%clk 0:00:05]} 96. Rd7+ {[%clk 0:00:29]}  Ke4 {[%clk 0:00:06]} 97. Re7+ {[%clk 0:00:28]}  Ne5 {[%clk 0:00:06]} 98. Kf2 {[%clk 0:00:28]}  Kd4 {[%clk 0:00:07]} 99. Kg3 {[%clk 0:00:28]}  Ke4 {[%clk 0:00:08]} 100. Re8 {[%clk 0:00:28]}  Kd4 {[%clk 0:00:08]} 101. Kf4 {[%clk 0:00:28]}  Nd3+ {[%clk 0:00:09]} 102. Kf3 {[%clk 0:00:29]}  Ne5+ {[%clk 0:00:09]} 103. Kf4 {[%clk 0:00:29]}  Nd3+ {[%clk 0:00:10]} 104. Kf5 {[%clk 0:00:30]}  Nc5 {[%clk 0:00:10]} 105. Rd8+ {[%clk 0:00:30]}  Ke3 {[%clk 0:00:10]} 106. Ke5 {[%clk 0:00:30]}  Nd3+ {[%clk 0:00:11]} 107. Kd5 {[%clk 0:00:30]}  Nf4+ {[%clk 0:00:11]} 108. Kc4 {[%clk 0:00:30]}  Ke4 {[%clk 0:00:11]} 109. Re8+ {[%clk 0:00:31]}  Kf5 {[%clk 0:00:12]} 110. Kd4 {[%clk 0:00:31]}  Ne6+ {[%clk 0:00:12]} 111. Kd5 {[%clk 0:00:32]}  Nc7+ {[%clk 0:00:13]} 112. Kd6 {[%clk 0:00:33]}  Nxe8+ {[%clk 0:00:14]} 1/2-1/2


[Site "https://www.chess.com"]

[Event "Titled Tuesday Blitz November 15 Early 2022"]
[White "Samunenkov, Ihor"]
[Black "Oro, Faustino"]
[WhiteFideId "14187086"]
[BlackFideId "20000197"]
[WhiteElo "2441"]
[BlackElo "2066"]
[Result "1-0"]
[Round "09"]
[TimeControl "180+1"]
[Date "2022.11.16"]
[WhiteClock "0:00:06"]
[BlackClock "0:00:02"]

1. e4 {[%clk 0:02:57]}  e5 {[%clk 0:02:53]} 2. Nf3 {[%clk 0:02:57]}  Nc6 {[%clk 0:02:53]} 3. Bb5 {[%clk 0:02:57]}  Nf6 {[%clk 0:02:53]} 4. O-O {[%clk 0:02:57]}  Nxe4 {[%clk 0:02:53]} 5. Re1 {[%clk 0:02:57]}  Nd6 {[%clk 0:02:52]} 6. Nxe5 {[%clk 0:02:55]}  Nxe5 {[%clk 0:02:53]} 7. Rxe5+ {[%clk 0:02:54]}  Be7 {[%clk 0:02:54]} 8. Bf1 {[%clk 0:02:55]}  O-O {[%clk 0:02:54]} 9. Nc3 {[%clk 0:02:55]}  Bf6 {[%clk 0:02:54]} 10. Re1 {[%clk 0:02:56]}  Re8 {[%clk 0:02:54]} 11. Nd5 {[%clk 0:02:53]}  Rxe1 {[%clk 0:02:17]} 12. Qxe1 {[%clk 0:02:54]}  Ne8 {[%clk 0:02:15]} 13. d4 {[%clk 0:02:03]}  Bxd4 {[%clk 0:01:12]} 14. Bg5 {[%clk 0:01:50]}  f6 {[%clk 0:01:11]} 15. Bh4 {[%clk 0:01:10]}  Bc5 {[%clk 0:00:47]} 16. Qe4 {[%clk 0:00:41]}  Nd6 {[%clk 0:00:31]} 17. Nxf6+ {[%clk 0:00:40]}  Qxf6 {[%clk 0:00:19]} 18. Qd5+ {[%clk 0:00:39]}  Qe6 {[%clk 0:00:20]} 19. Qxc5 {[%clk 0:00:38]}  c6 {[%clk 0:00:16]} 20. Rd1 {[%clk 0:00:30]}  Ne4 {[%clk 0:00:16]} 21. Qe3 {[%clk 0:00:19]}  d5 {[%clk 0:00:16]} 22. Re1 {[%clk 0:00:17]}  Qf7 {[%clk 0:00:13]} 23. f3 {[%clk 0:00:17]}  Nd6 {[%clk 0:00:14]} 24. Qe5 {[%clk 0:00:16]}  Nf5 {[%clk 0:00:11]} 25. Bf2 {[%clk 0:00:12]}  Bd7 {[%clk 0:00:10]} 26. Qc7 {[%clk 0:00:10]}  Be6 {[%clk 0:00:10]} 27. Qe5 {[%clk 0:00:08]}  Re8 {[%clk 0:00:10]} 28. Bd3 {[%clk 0:00:07]}  Bd7 {[%clk 0:00:09]} 29. Qc7 {[%clk 0:00:07]}  Rxe1+ {[%clk 0:00:09]} 30. Bxe1 {[%clk 0:00:08]}  Qe6 {[%clk 0:00:08]} 31. Bf2 {[%clk 0:00:07]}  Nd6 {[%clk 0:00:04]} 32. h3 {[%clk 0:00:07]}  h6 {[%clk 0:00:03]} 33. Qb8+ {[%clk 0:00:05]}  Kf7 {[%clk 0:00:03]} 34. Qxa7 {[%clk 0:00:05]}  Qe7 {[%clk 0:00:02]} 35. Qc5 {[%clk 0:00:04]}  Bf5 {[%clk 0:00:01]} 36. Bxf5 {[%clk 0:00:02]}  Nxf5 {[%clk 0:00:02]} 37. Qxe7+ {[%clk 0:00:02]}  Kxe7 {[%clk 0:00:03]} 38. Kf1 {[%clk 0:00:02]}  Kd7 {[%clk 0:00:03]} 39. Ke2 {[%clk 0:00:02]}  Ne7 {[%clk 0:00:03]} 40. Bd4 {[%clk 0:00:02]}  Nc8 {[%clk 0:00:03]} 41. Bxg7 {[%clk 0:00:02]}  h5 {[%clk 0:00:04]} 42. g4 {[%clk 0:00:03]}  hxg4 {[%clk 0:00:05]} 43. fxg4 {[%clk 0:00:04]}  Ke6 {[%clk 0:00:06]} 44. h4 {[%clk 0:00:04]}  Kf7 {[%clk 0:00:06]} 45. Be5 {[%clk 0:00:05]}  Ne7 {[%clk 0:00:06]} 46. h5 {[%clk 0:00:06]}  Ke6 {[%clk 0:00:06]} 47. Bd4 {[%clk 0:00:05]}  Kf7 {[%clk 0:00:05]} 48. Kf3 {[%clk 0:00:05]}  Nc8 {[%clk 0:00:02]} 49. g5 {[%clk 0:00:05]}  Nd6 {[%clk 0:00:02]} 50. g6+ {[%clk 0:00:06]}  Ke6 {[%clk 0:00:02]} 51. h6 {[%clk 0:00:05]}  Nf5 {[%clk 0:00:03]} 52. h7 {[%clk 0:00:05]}  Nxd4+ {[%clk 0:00:03]} 53. Kg4 {[%clk 0:00:06]}  Nf5 {[%clk 0:00:02]} 54. h8=Q {[%clk 0:00:06]} 1-0


[Site "https://www.chess.com"]

[Event "Titled Tuesday Blitz November 15 Early 2022"]
[White "Sanchez Enriquez, Oscar Gerardo"]
[Black "Kryakvin, Dmitry"]
[WhiteFideId "5106311"]
[BlackFideId "4153278"]
[WhiteElo "2375"]
[BlackElo "2414"]
[Result "1/2-1/2"]
[Round "09"]
[TimeControl "180+1"]
[Date "2022.11.16"]
[WhiteClock "0:00:13"]
[BlackClock "0:00:11"]

1. e4 {[%clk 0:03:00]}  c5 {[%clk 0:02:59]} 2. Nf3 {[%clk 0:03:01]}  d6 {[%clk 0:02:59]} 3. Bc4 {[%clk 0:03:00]}  Nc6 {[%clk 0:02:57]} 4. h3 {[%clk 0:03:00]}  Nf6 {[%clk 0:02:57]} 5. Qe2 {[%clk 0:03:00]}  e6 {[%clk 0:02:56]} 6. Bb3 {[%clk 0:03:00]}  Be7 {[%clk 0:02:54]} 7. O-O {[%clk 0:03:01]}  O-O {[%clk 0:02:52]} 8. c3 {[%clk 0:03:01]}  d5 {[%clk 0:02:51]} 9. e5 {[%clk 0:03:02]}  Nd7 {[%clk 0:02:50]} 10. d4 {[%clk 0:03:02]}  a5 {[%clk 0:02:48]} 11. a3 {[%clk 0:03:00]}  b6 {[%clk 0:02:42]} 12. Rd1 {[%clk 0:02:59]}  Ba6 {[%clk 0:02:41]} 13. Qe3 {[%clk 0:02:59]}  Rc8 {[%clk 0:02:35]} 14. Nbd2 {[%clk 0:02:56]}  b5 {[%clk 0:02:32]} 15. Nf1 {[%clk 0:02:55]}  b4 {[%clk 0:02:26]} 16. axb4 {[%clk 0:02:52]}  cxb4 {[%clk 0:02:25]} 17. Ng3 {[%clk 0:02:50]}  bxc3 {[%clk 0:02:20]} 18. bxc3 {[%clk 0:02:51]}  Nb6 {[%clk 0:02:18]} 19. Qf4 {[%clk 0:02:49]}  f5 {[%clk 0:02:11]} 20. exf6 {[%clk 0:02:46]}  Bxf6 {[%clk 0:02:11]} 21. Qg4 {[%clk 0:02:46]}  Qd7 {[%clk 0:02:05]} 22. Nh5 {[%clk 0:02:25]}  Be2 {[%clk 0:02:03]} 23. Re1 {[%clk 0:02:24]}  Bxf3 {[%clk 0:02:03]} 24. gxf3 {[%clk 0:02:14]}  Rce8 {[%clk 0:02:02]} 25. Bc2 {[%clk 0:02:06]}  Kh8 {[%clk 0:02:01]} 26. Nf4 {[%clk 0:01:57]}  e5 {[%clk 0:01:42]} 27. Qxd7 {[%clk 0:01:56]}  Nxd7 {[%clk 0:01:42]} 28. Nxd5 {[%clk 0:01:55]}  exd4 {[%clk 0:01:42]} 29. Ba3 {[%clk 0:01:32]}  Rxe1+ {[%clk 0:01:30]} 30. Rxe1 {[%clk 0:01:32]}  Rc8 {[%clk 0:01:30]} 31. Bf5 {[%clk 0:01:27]}  Nce5 {[%clk 0:01:28]} 32. Kg2 {[%clk 0:01:19]}  g6 {[%clk 0:01:12]} 33. cxd4 {[%clk 0:00:44]}  Nxf3 {[%clk 0:01:02]} 34. Kxf3 {[%clk 0:00:18]}  gxf5 {[%clk 0:01:00]} 35. Nxf6 {[%clk 0:00:15]}  Nxf6 {[%clk 0:00:57]} 36. Re5 {[%clk 0:00:16]}  Rc3+ {[%clk 0:00:52]} 37. Re3 {[%clk 0:00:16]}  Rxe3+ {[%clk 0:00:50]} 38. fxe3 {[%clk 0:00:17]}  Kg7 {[%clk 0:00:37]} 39. Kf4 {[%clk 0:00:18]}  Nd5+ {[%clk 0:00:37]} 40. Kxf5 {[%clk 0:00:18]}  Nxe3+ {[%clk 0:00:37]} 41. Ke4 {[%clk 0:00:19]}  Nc4 {[%clk 0:00:30]} 42. Bc1 {[%clk 0:00:19]}  a4 {[%clk 0:00:26]} 43. Kd5 {[%clk 0:00:20]}  Na5 {[%clk 0:00:24]} 44. Bb2 {[%clk 0:00:16]}  Kf7 {[%clk 0:00:21]} 45. Kc5 {[%clk 0:00:15]}  Nb3+ {[%clk 0:00:21]} 46. Kb4 {[%clk 0:00:14]}  Ke6 {[%clk 0:00:21]} 47. Kxa4 {[%clk 0:00:14]}  Nd2 {[%clk 0:00:21]} 48. Kb4 {[%clk 0:00:13]}  Kd5 {[%clk 0:00:21]} 49. Kc3 {[%clk 0:00:14]}  Nf3 {[%clk 0:00:19]} 50. Kd3 {[%clk 0:00:13]}  Ng5 {[%clk 0:00:19]} 51. h4 {[%clk 0:00:13]}  Nf3 {[%clk 0:00:19]} 52. h5 {[%clk 0:00:14]}  Nh2 {[%clk 0:00:17]} 53. Bc1 {[%clk 0:00:14]}  Ng4 {[%clk 0:00:16]} 54. h6 {[%clk 0:00:14]}  Nf6 {[%clk 0:00:14]} 55. Bf4 {[%clk 0:00:14]}  Ke6 {[%clk 0:00:14]} 56. Ke3 {[%clk 0:00:14]}  Kf5 {[%clk 0:00:13]} 57. Kf3 {[%clk 0:00:14]}  Nd5 {[%clk 0:00:13]} 58. Bc1 {[%clk 0:00:15]}  Nf6 {[%clk 0:00:12]} 59. Be3 {[%clk 0:00:14]}  Nd5 {[%clk 0:00:11]} 60. Bc1 {[%clk 0:00:14]}  Nf6 {[%clk 0:00:11]} 61. Bd2 {[%clk 0:00:15]}  Nd5 {[%clk 0:00:11]} 62. Ba5 {[%clk 0:00:12]}  Nf6 {[%clk 0:00:11]} 63. Bd2 {[%clk 0:00:13]}  Nd5 {[%clk 0:00:11]} 64. Bc1 {[%clk 0:00:13]} 1/2-1/2


[Site "https://www.chess.com"]

[Event "Titled Tuesday Blitz November 15 Early 2022"]
[White "Santos Flores, Alberto"]
[Black "Thiel, Thomas"]
[WhiteFideId "3601234"]
[BlackFideId "4615964"]
[WhiteElo "2235"]
[BlackElo "2234"]
[Result "1-0"]
[Round "09"]
[TimeControl "180+1"]
[Date "2022.11.16"]
[WhiteClock "0:01:51"]
[BlackClock "0:01:11"]

1. e4 {[%clk 0:03:00]}  d5 {[%clk 0:02:52]} 2. exd5 {[%clk 0:03:00]}  Nf6 {[%clk 0:02:52]} 3. Nf3 {[%clk 0:03:00]}  Nxd5 {[%clk 0:02:50]} 4. d4 {[%clk 0:03:00]}  g6 {[%clk 0:02:50]} 5. c4 {[%clk 0:03:00]}  Nb6 {[%clk 0:02:49]} 6. Nc3 {[%clk 0:03:00]}  Bg7 {[%clk 0:02:49]} 7. Be3 {[%clk 0:02:51]}  O-O {[%clk 0:02:47]} 8. Qd2 {[%clk 0:02:48]}  Nc6 {[%clk 0:02:35]} 9. d5 {[%clk 0:02:42]}  Ne5 {[%clk 0:02:32]} 10. Nxe5 {[%clk 0:02:42]}  Bxe5 {[%clk 0:02:30]} 11. O-O-O {[%clk 0:02:39]}  c6 {[%clk 0:02:28]} 12. dxc6 {[%clk 0:02:34]}  Qxd2+ {[%clk 0:02:26]} 13. Rxd2 {[%clk 0:02:35]}  bxc6 {[%clk 0:02:25]} 14. Bd4 {[%clk 0:02:12]}  Bf4 {[%clk 0:02:21]} 15. Be3 {[%clk 0:02:12]}  Bxe3 {[%clk 0:02:21]} 16. fxe3 {[%clk 0:02:12]}  Be6 {[%clk 0:02:19]} 17. b3 {[%clk 0:02:12]}  Rad8 {[%clk 0:02:17]} 18. Be2 {[%clk 0:02:08]}  Rxd2 {[%clk 0:02:15]} 19. Kxd2 {[%clk 0:02:09]}  Rd8+ {[%clk 0:02:14]} 20. Kc2 {[%clk 0:02:09]}  Nc8 {[%clk 0:01:51]} 21. Rd1 {[%clk 0:02:08]}  Rxd1 {[%clk 0:01:49]} 22. Bxd1 {[%clk 0:02:09]}  Nd6 {[%clk 0:01:47]} 23. Bf3 {[%clk 0:02:09]}  c5 {[%clk 0:01:44]} 24. Na4 {[%clk 0:02:09]}  Bf5+ {[%clk 0:01:41]} 25. Kc1 {[%clk 0:02:01]}  Ne4 {[%clk 0:01:36]} 26. Bxe4 {[%clk 0:02:01]}  Bxe4 {[%clk 0:01:35]} 27. g3 {[%clk 0:02:01]}  f5 {[%clk 0:01:21]} 28. Nxc5 {[%clk 0:02:01]}  Bc6 {[%clk 0:01:21]} 29. b4 {[%clk 0:01:59]}  Kf7 {[%clk 0:01:21]} 30. Kd2 {[%clk 0:01:57]}  e5 {[%clk 0:01:19]} 31. b5 {[%clk 0:01:56]}  Ba8 {[%clk 0:01:16]} 32. a4 {[%clk 0:01:55]}  g5 {[%clk 0:01:12]} 33. a5 {[%clk 0:01:52]}  f4 {[%clk 0:01:11]} 34. exf4 {[%clk 0:01:51]}  exf4 {[%clk 0:01:12]} 35. gxf4 {[%clk 0:01:51]}  gxf4 {[%clk 0:01:12]} 36. b6 {[%clk 0:01:50]}  axb6 {[%clk 0:01:11]} 37. axb6 {[%clk 0:01:51]} 1-0


[Site "https://www.chess.com"]

[Event "Titled Tuesday Blitz November 15 Early 2022"]
[White "Santos Ruiz, Miguel"]
[Black "Jobava, Baadur"]
[WhiteFideId "22291482"]
[BlackFideId "13601520"]
[WhiteElo "2503"]
[BlackElo "2582"]
[Result "0-1"]
[Round "09"]
[TimeControl "180+1"]
[Date "2022.11.15"]
[WhiteClock "0:00:14"]
[BlackClock "0:00:27"]

1. e4 {[%clk 0:03:00]}  c6 {[%clk 0:02:59]} 2. d4 {[%clk 0:03:00]}  d5 {[%clk 0:03:00]} 3. exd5 {[%clk 0:03:01]}  cxd5 {[%clk 0:03:00]} 4. Nf3 {[%clk 0:03:01]}  Nc6 {[%clk 0:02:59]} 5. c3 {[%clk 0:03:00]}  Bg4 {[%clk 0:02:59]} 6. h3 {[%clk 0:03:00]}  Bxf3 {[%clk 0:02:59]} 7. Qxf3 {[%clk 0:02:59]}  e6 {[%clk 0:03:00]} 8. Bd3 {[%clk 0:02:59]}  g6 {[%clk 0:02:59]} 9. a4 {[%clk 0:02:54]}  Bh6 {[%clk 0:02:59]} 10. Bxh6 {[%clk 0:02:53]}  Nxh6 {[%clk 0:03:00]} 11. O-O {[%clk 0:02:48]}  Ng8 {[%clk 0:03:00]} 12. Nd2 {[%clk 0:02:48]}  Nge7 {[%clk 0:02:58]} 13. Qe2 {[%clk 0:02:49]}  Qc7 {[%clk 0:02:56]} 14. Nf3 {[%clk 0:02:47]}  O-O {[%clk 0:02:54]} 15. Rfe1 {[%clk 0:02:45]}  Rae8 {[%clk 0:02:53]} 16. h4 {[%clk 0:02:40]}  Nc8 {[%clk 0:02:47]} 17. Ne5 {[%clk 0:02:37]}  Nd6 {[%clk 0:02:46]} 18. h5 {[%clk 0:02:35]}  Qd8 {[%clk 0:02:30]} 19. Qg4 {[%clk 0:02:28]}  f5 {[%clk 0:02:15]} 20. Qg3 {[%clk 0:02:24]}  g5 {[%clk 0:02:15]} 21. Re2 {[%clk 0:02:11]}  Nxe5 {[%clk 0:02:11]} 22. Qxe5 {[%clk 0:02:06]}  f4 {[%clk 0:01:56]} 23. Rae1 {[%clk 0:01:47]}  Nf7 {[%clk 0:01:54]} 24. Qxe6 {[%clk 0:01:38]}  Rxe6 {[%clk 0:01:55]} 25. Rxe6 {[%clk 0:01:38]}  Nd6 {[%clk 0:01:34]} 26. R1e5 {[%clk 0:01:20]}  Nf7 {[%clk 0:01:25]} 27. Re1 {[%clk 0:01:18]}  g4 {[%clk 0:01:17]} 28. Re7 {[%clk 0:01:19]}  Qb6 {[%clk 0:01:10]} 29. b4 {[%clk 0:01:13]}  Ng5 {[%clk 0:01:00]} 30. R1e5 {[%clk 0:01:09]}  Qf6 {[%clk 0:00:57]} 31. Rxb7 {[%clk 0:01:04]}  g3 {[%clk 0:00:53]} 32. Rxd5 {[%clk 0:00:48]}  f3 {[%clk 0:00:44]} 33. Rf5 {[%clk 0:00:45]}  Re8 {[%clk 0:00:26]} 34. Rxf6 {[%clk 0:00:38]}  Re1+ {[%clk 0:00:25]} 35. Bf1 {[%clk 0:00:38]}  Nh3+ {[%clk 0:00:26]} 36. gxh3 {[%clk 0:00:37]}  g2 {[%clk 0:00:27]} 37. Kh2 {[%clk 0:00:14]}  gxf1=Q {[%clk 0:00:27]} 0-1


[Site "https://www.chess.com"]